Cogmind - Beta 16 @@@ ROGUE MODE // 2026.01.04 @ 21:51:13 Player: Cart123 Result: Destroyed by 8R-AWN with 8R-AWN's Boregun Performance ------------- Evolutions (1) 500 Regions Visited (5) 1000 Robots Destroyed (16) 80 Value Destroyed (268) 268 Prototype IDs (0) 0 Alien Tech Used (0) 0 Bonus (-22) -22 TOTAL SCORE: 1826 Bonus ------- Friendly Fire -22 Cogmind --------- Core Integrity 0/400 Matter 300/300 Energy 75/300 System Corruption 0% Temperature Cool (0) Movement Core (150) Ox2 Location -9/Exiles Parts ------- > --- POWER (1) -------- (None) > --- PROPULSION (2) --- (None) > --- UTILITY (4) ------ Small Storage Unit Compact Battery > --- WEAPON (2) ------- Medium Laser > --- INVENTORY (8) ---- Fission Core Light Fission Core Targeting Computer System Shield Heavy EM Pulse Gun Heavy Explosive Trap Peak State ------------ > --- POWER ------------ Light Ion Engine > --- PROPULSION ------- Hover Unit > --- UTILITY ---------- Small Storage Unit Compact Battery Shield Generator System Shield > --- WEAPON ----------- Beam Rifle Light Assault Rifle > --- INVENTORY -------- Light Ion Engine Aluminum Leg System Shield Heavy EM Pulse Gun Medium Laser Assault Rifle Light Assault Rifle [Rating: 15] Favorites ----------- Power Light Ion Engine Engine Light Ion Engine Propulsion Aluminum Leg Leg Aluminum Leg Wheel Wheel Hover Unit Improved Hover Unit Flight Unit VTOL Module Utility Small Storage Unit Device Shield Generator Storage Small Storage Unit Processor Visual Processing Unit Hackware System Shield Protection Hardened Light Armor Plating Weapon Assault Rifle Energy Gun Medium Laser Energy Cannon Light EM Pulse Cannon Ballistic Gun Assault Rifle Build | -11 -10 -10 -9 -9 -9 ------- Run | Yrd Mat Min Mat Min Exi Slots Evolved 2 | . . . 2 . . Power . | . . . . . . Propulsion . | . . . . . . Utility 2 | . . . 2 . . Weapon . | . . . . . . Parts Attached 27 | 6 3 . 9 8 1 Power 2 | 1 . . . 1 . Engine 2 | 1 . . . 1 . Core . | . . . . . . Reactor . | . . . . . . Propulsion 10 | 2 2 . 2 3 1 Treads . | . . . . . . Leg 3 | 2 . . 1 . . Wheel 3 | . . . . 2 1 Hover 3 | . 2 . 1 . . Flight 1 | . . . . 1 . Utility 8 | 1 1 . 3 3 . Device 1 | . . . 1 . . Storage 3 | 1 . . 1 1 . Processor 1 | . . . . 1 . Hackware 1 | . . . 1 . . Protection 2 | . 1 . . 1 . Artifact . | . . . . . . Weapon 7 | 2 . . 4 1 . Energy Gun 3 | . . . 2 1 . Energy Cannon 1 | . . . 1 . . Ballistic Gun 3 | 2 . . 1 . . Ballistic Cannon . | . . . . . . Launcher . | . . . . . . Special Weapon . | . . . . . . Impact Weapon . | . . . . . . Slashing Weapon . | . . . . . . Piercing Weapon . | . . . . . . Special Melee Weapon . | . . . . . . Unidentified Prototypes . | . . . . . . Parts Lost 9 | . 1 . 2 . 6 Power 1 | . . . . . 1 Propulsion 3 | . 1 . . . 2 Utility 3 | . . . 1 . 2 Weapon 2 | . . . 1 . 1 Highest Loss Streak 6 | . 1 . 1 . 6 To Critical Strikes . | . . . . . . Average Backups 4 | 1 4 4 6 4 5 Power . | . 1 1 1 . 1 Propulsion . | . 1 1 1 . . Utility . | . . . . 1 2 Weapon 2 | . 1 2 3 1 1 Tool/Special . | . . . . . . Unused Backups 5 | . . . . . 5 Power 3 | . . . . . 3 Propulsion . | . . . . . . Utility 2 | . . . . . 2 Weapon . | . . . . . . Tool/Special . | . . . . . . Average Slot Usage (%) 86 | . 93 100 77 84 88 Engine 11 | . 14 14 11 11 9 Leg 9 | . 8 28 8 7 . Wheel 1 | . . . . 1 17 Hover 7 | . 18 . 6 3 . Device 6 | . . . 9 11 9 Storage 17 | . 14 14 14 22 22 Hackware 1 | . . . 4 2 . Protection 7 | . 8 14 3 7 9 Energy Gun 2 | . . . 4 2 11 Ballistic Gun 18 | . 28 28 12 14 7 Peak Build Rating 15 | 6 9 7 15 15 14 Average Rating 9 | 3 7 7 10 11 12 On Entrance 7 | . 6 7 7 12 13 Avg Prop Armor Cover (%) . | . . . . . . Naked Turns . | . . . . . . Heaviest Build 20 | 11 14 14 20 20 20 Greatest Support 20 | 20 20 20 20 20 20 Greatest Overweight (x) 5 | . 1 . 2 4 5 Average Overweight (x) . | . . . . 1 . Largest Inventory Capacity 8 | 8 8 8 8 8 8 Average Capacity 7 | 6 8 8 8 8 8 Most Carried 8 | 5 6 5 8 8 7 Average Carried 5 | 1 4 4 6 4 6 Final Capacity 8 | 8 8 8 8 8 8 Final Carried 7 | 2 4 5 7 5 6 Class Distribution -------------------- 100% | Mutant Dominant Class ---------------- Mutant | -10/Materials Mutant | -10/Mines Mutant | -9/Materials Mutant | -9/Mines Mutant | -9/Exiles Resources | -11 -10 -10 -9 -9 -9 ----------- Run | Yrd Mat Min Mat Min Exi Matter Collected 668 | 260 125 24 72 187 . Remotely . | . . . . . . Salvage Created 410 | . 135 36 72 167 . Parts 23 | . 10 3 4 6 . Haulers Intercepted . | . . . . . . Recyclers Shooed . | . . . . . . Parts Field Recycled . | . . . . . . Retrieved Matter . | . . . . . . Parts Self-Destructed . | . . . . . . Prevented . | . . . . . . Parts Restored . | . . . . . . Kills | -11 -10 -10 -9 -9 -9 ------- Run | Yrd Mat Min Mat Min Exi Combat Hostiles Destroyed 12 | . 6 3 1 2 . Guns 12 | . 6 3 1 2 . Classes Destroyed 7 | . 3 . 1 3 . Worker 1 | . . . . 1 . Recycler 1 | . . . . 1 . Watcher 2 | . 1 . 1 . . Swarmer 8 | . 5 3 . . . Grunt 2 | . 1 . . 1 . Brawler 1 | . . . . 1 . Sentry 1 | . . . 1 . . Best Kill Streak 3 | . 3 3 1 1 . Combat Bots Only 3 | . 3 3 1 1 . Max Kills in Single Turn 2 | . 2 1 1 1 . Gunslinging 1 | . 1 . . . . Exploded . | . . . . . . Melee . | . . . . . . Uniques/NPCs Destroyed . | . . . . . . Combat | -11 -10 -10 -9 -9 -9 -------- Run | Yrd Mat Min Mat Min Exi Hostile Shots Fired 194 | . 51 24 33 9 77 Missed 62 | . 20 4 7 4 27 Hits 132 | . 31 20 26 5 50 Melee 12 | . . . 4 2 6 Projectile 120 | . 31 20 22 3 44 Critical Strikes 9 | . 2 . 1 . 6 Part Disruptions 1 | . . . . . 1 Damage Taken 1489 | . 253 157 309 61 709 Core 476 | . 52 14 87 15 308 Absorbed by Shields 221 | . . . 111 23 87 Core Remaining (%) 86 | 100 . 73 . . . Volleys Fired 54 | . 21 6 17 9 1 Largest 2 | . 2 2 2 2 2 Hottest 101 | . 40 40 101 70 70 Shots Fired 95 | . 42 12 21 18 2 Gun 94 | . 42 12 20 18 2 Cannon 1 | . . . 1 . . Launcher . | . . . . . . Special . | . . . . . . Kinetic 83 | . 42 12 19 9 1 Thermal 10 | . . . . 9 1 Explosive . | . . . . . . Electromagnetic 2 | . . . 2 . . Robot Hit Streak 6 | . 6 5 5 3 5 Robot Miss Streak 6 | . 6 4 2 2 . Penetration Max . | . . . . . . Secondary Targets 4 | . 2 2 . . . Max Gunslinging Chain 1 | . 1 1 . . . Shots Hit Robots 53 | . 23 6 11 11 2 Core Hits 30 | . 14 4 5 6 1 Critical Kills . | . . . . . . Critical Parts Destroyed . | . . . . . . Critical Strikes 3 | . . . . 3 . Burn 3 | . . . . 3 . Melee Attacks . | . . . . . . Impact . | . . . . . . Slashing . | . . . . . . Piercing . | . . . . . . Sneak Attacks . | . . . . . . Combat Hostiles . | . . . . . . Follow-up Attacks . | . . . . . . Damage Inflicted 589 | . 238 76 103 144 28 Guns 538 | . 227 66 83 140 22 Cannons 20 | . . . 20 . . Explosions . | . . . . . . Melee . | . . . . . . Ramming 31 | . 11 10 . 4 6 Kinetic 441 | . 227 66 83 55 10 Thermal 97 | . . . . 85 12 Explosive . | . . . . . . Electromagnetic 20 | . . . 20 . . Impact . | . . . . . . Slashing . | . . . . . . Piercing . | . . . . . . Highest Corruption . | . . . . . . Average Corruption . | . . . . . . Corruption Purged . | . . . . . . Corruption Blocked . | . . . . . . Overload Shots . | . . . . . . Overflow Damage . | . . . . . . Projectiles . | . . . . . . Explosions . | . . . . . . Melee . | . . . . . . Knockbacks . | . . . . . . Impact . | . . . . . . Kinetic . | . . . . . . Secondary . | . . . . . . Self-Inflicted Damage 9 | . 4 . . 2 3 Shots . | . . . . . . Rammed 5 | . 3 . . 1 1 Targets Rammed 9 | . 4 3 . 1 1 Kicked 4 | . 1 3 . . . Crushed . | . . . . . . Highest Temperature 75 | . 20 12 45 75 30 Average Temperature 15 | . 8 5 18 27 15 Received Heat Transfer 277 | . 18 . 76 12 171 Siege Activations . | . . . . . . Martial Activations . | . . . . . . Shielding Activations . | . . . . . . Robots Disrupted . | . . . . . . Combat Hostiles . | . . . . . . Robots Corrupted . | . . . . . . Combat Hostiles . | . . . . . . Parts Fried . | . . . . . . Impact Corruptions . | . . . . . . Robots Melted . | . . . . . . Combat Hostiles . | . . . . . . Parts Melted 1 | . . . . 1 . Heat Transferred 518 | . . . . 481 37 Parts Sabotaged . | . . . . . . Parts Stolen . | . . . . . . Parts Stripped . | . . . . . . Power Chain Reactions . | . . . . . . Alert | -11 -10 -10 -9 -9 -9 ------- Run | Yrd Mat Min Mat Min Exi Maximum Alert Level . | . . . . . . Low Security (%) 100 | 100 100 100 100 100 . Level 1 . | . . . . . . Level 2 . | . . . . . . Level 3 . | . . . . . . Level 4 . | . . . . . . Level 5 . | . . . . . . High Security . | . . . . . . Max Security . | . . . . . . Peak Influence 70 | . 70 60 30 69 . Initial 23 | . . 16 23 . . Average 14 | . 27 13 5 11 . Influence Increases 389 | . 187 70 37 95 . Destroy 0b10 Robot/C 240 | . 120 60 20 40 . Destroy 0b10 Robot/NC 20 | . 5 . 5 10 . Destroy Leader 64 | . 32 10 12 10 . Trap Triggered on 0b10 20 | . . . . 20 . Partial Spotted 15 | . 15 . . . . Lose Combat Pursuer 30 | . 15 . . 15 . Influence Decreases 389 | . 143 54 97 56 39 Entered New Map 104 | . . 28 37 . 39 Time Decay 278 | . 136 26 60 56 . Lost Part 7 | . 7 . . . . Squads Dispatched 2 | . 2 . . . . Investigation 1 | . 1 . . . . Extermination . | . . . . . . Reinforcement 1 | . 1 . . . . Assault . | . . . . . . Garrison . | . . . . . . Intercept . | . . . . . . Searches Triggered . | . . . . . . Construction Impeded . | . . . . . . Haulers Reinforced . | . . . . . . Active Scanning Responses . | . . . . . . Cargo Convoy Interrupts . | . . . . . . Stealth | -11 -10 -10 -9 -9 -9 --------- Run | Yrd Mat Min Mat Min Exi Distress Signals 4 | . 3 . 1 . . Communications Jammed . | . . . . . . Distress Signals . | . . . . . . Times Spotted 31 | . 13 3 5 2 8 Peak Tracking Total 9 | . 5 3 3 3 9 Tactical Retreats 2 | . 1 . . 1 . Traps | -11 -10 -10 -9 -9 -9 ------- Run | Yrd Mat Min Mat Min Exi Traps Triggered 1 | . 1 . . . . Indirectly . | . . . . . . Trap Hack Attempts . | . . . . . . Triggered . | . . . . . . Disarmed . | . . . . . . Reprogrammed . | . . . . . . Reused 2 | . . . . 2 . Traps Extracted . | . . . . . . Installed 3 | . . . . 3 . Triggered 2 | . . . . 2 . Most Traps Carried 3 | . . . . 3 1 Machines | -11 -10 -10 -9 -9 -9 ---------- Run | Yrd Mat Min Mat Min Exi Machines Disabled . | . . . . . . Max in Single Turn . | . . . . . . Machines Repaired . | . . . . . . Machines Dismantled . | . . . . . . Machines Sabotaged . | . . . . . . Overloaded Fab Kills . | . . . . . . Hacking | -11 -10 -10 -9 -9 -9 --------- Run | Yrd Mat Min Mat Min Exi Machines Accessed 1 | . 1 . . . . Terminals . | . . . . . . Fabricators . | . . . . . . Repair Stations 1 | . 1 . . . . Recycling Units . | . . . . . . Scanalyzers . | . . . . . . Garrison Access . | . . . . . . Total Hacks 1 | . 1 . . . . Successful . | . . . . . . Failed 1 | . 1 . . . . Catastrophic . | . . . . . . Database Lockouts . | . . . . . . Manual 1 | . 1 . . . . Terminals . | . . . . . . Fabricators . | . . . . . . Repair Stations 1 | . 1 . . . . Recycling Units . | . . . . . . Scanalyzers . | . . . . . . Garrison Access . | . . . . . . Terminal Hacks . | . . . . . . Fabricator Hacks . | . . . . . . Repair Station Hacks . | . . . . . . Recycling Unit Hacks . | . . . . . . Scanalyzer . | . . . . . . Garrison Access Hacks . | . . . . . . Unauthorized Hacks . | . . . . . . Terminals . | . . . . . . Fabricators . | . . . . . . Repair Stations . | . . . . . . Recycling Units . | . . . . . . Scanalyzers . | . . . . . . Garrison Access . | . . . . . . Data Cores Recovered . | . . . . . . Used . | . . . . . . Hacking Detections 2 | . 2 . . . . Full Trace Events . | . . . . . . Feedback Events . | . . . . . . Feedback Blocked . | . . . . . . Robot Schematics Acquired . | . . . . . . Robots Built . | . . . . . . Authchips . | . . . . . . Time . | . . . . . . Total Robot Build Rating . | . . . . . . Part Schematics Acquired . | . . . . . . Parts Built . | . . . . . . Authchips . | . . . . . . Time . | . . . . . . Total Part Build Rating . | . . . . . . Part Studies Acquired . | . . . . . . Parts Repaired . | . . . . . . Time . | . . . . . . Parts Recycled . | . . . . . . Recycled Matter . | . . . . . . Retrieved Matter . | . . . . . . Retrieved Components . | . . . . . . Parts Scanalyzed . | . . . . . . Part Schematics Acquired . | . . . . . . Parts Damaged . | . . . . . . Bothacking | -11 -10 -10 -9 -9 -9 ------------ Run | Yrd Mat Min Mat Min Exi Used RIF Installer . | . . . . . . Robots Hacked . | . . . . . . Non-combat . | . . . . . . Combat . | . . . . . . Robot Hacks Applied . | . . . . . . Relay Couplers Released . | . . . . . . Fabnet Peak Effective % . | . . . . . . Robots Rewired . | . . . . . . Allies Hacked . | . . . . . . Hacks Repelled . | . . . . . . Allies | -11 -10 -10 -9 -9 -9 -------- Run | Yrd Mat Min Mat Min Exi Total Allies . | . . . . . . Largest Group . | . . . . . . Highest-Rated Group . | . . . . . . Highest-Rated Ally . | . . . . . . Total Orders . | . . . . . . Ally Attacks . | . . . . . . Total Damage . | . . . . . . Kills . | . . . . . . Allies Corrupted . | . . . . . . Allies Melted . | . . . . . . Intel | -11 -10 -10 -9 -9 -9 ------- Run | Yrd Mat Min Mat Min Exi Active Infowar (turns) 48 | . . . . 48 . Optics 48 | . . . . 48 . Robot Analysis Total . | . . . . . . Derelict Logs Recovered 1 | . . . . 1 . Drone Launches . | . . . . . . Drone Recoveries . | . . . . . . Exploration | -11 -10 -10 -9 -9 -9 ------------- Run | Yrd Mat Min Mat Min Exi Turns Passed 1628 | 59 430 117 355 576 91 Spaces Moved 975 | 61 305 80 173 274 82 Core 44 | 38 . . . . 6 Treads . | . . . . . . Legs 411 | 23 97 80 61 150 . Wheels 126 | . . . . 50 76 Hover 391 | . 208 . 112 71 . Flight 3 | . . . . 3 . Fastest Speed 50 | 50 56 120 120 80 80 Average Speed 118 | 76 79 120 136 168 92 Slowest Speed 355 | 120 120 120 180 355 300 Overloaded Moves . | . . . . . . Propulsion Burnouts . | . . . . . . Robots Hopped . | . . . . . . Potential Cave-ins . | . . . . . . Cave-ins Triggered . | . . . . . . Exploration Rate (%) 19 | 3 31 18 13 28 24 Regions Visited 5 Branch Regions 3 Pre-discovered Areas . | . . . . . . Known Exits Taken . | . . . . . . Unknown Exits Taken 5 | 1 1 1 1 1 . Scrap Searched 2 | . . . . 2 . Spaces Dug . | . . . . . . Terrain Destroyed . | . . . . . . Melee . | . . . . . . Projectile . | . . . . . . AOE . | . . . . . . Terrain Rammed . | . . . . . . Walls Destroyed . | . . . . . . Machines Disabled . | . . . . . . Actions | -11 -10 -10 -9 -9 -9 --------- Run | Yrd Mat Min Mat Min Exi Total 1361 | 73 456 89 273 374 96 Wait 227 | . 112 . 61 54 . Move 970 | 60 304 79 172 273 82 Hop . | . . . . . . Pick Up 36 | 7 6 1 7 12 3 Fast Attach 1 | 1 . . . . . Attach 24 | 5 4 . 4 10 1 Detach 3 | . 1 . 2 . . Swap 10 | . 2 . 7 1 . Drop 17 | . 2 . 3 11 1 Fire 54 | . 21 6 17 9 1 Melee . | . . . . . . Ram 5 | . 3 . . 1 1 Kick 4 | . 1 3 . . . Crush . | . . . . . . Escape Stasis . | . . . . . . Rewire 7 | . . . . . 7 Trap 3 | . . . . 3 . Miscellaneous . | . . . . . . Route ------- -11/Scrapyard -10/Materials -10/Mines -9/Materials -9/Mines -9/Exiles History --------- Turn | Location | Event 4 | -11/Scrapyard | Discovered new exit (range 16) 60 | -11/Scrapyard | Entered Materials 305 | -10/Materials | Build established: Mutant 479 | -10/Materials | Discovered new exit (range 9) 490 | -10/Materials | Entered Mines 568 | -10/Mines | Discovered new exit (range 6) 593 | -10/Mines | Met a Derelict bent on vengeance 607 | -10/Mines | Entered Materials 607 | -9/Materials | Evolved 2 slots: Utility x2 863 | -9/Materials | Discovered new exit (range 16) 962 | -9/Materials | Entered Mines 1140 | -9/Mines | Found a hidden stash of uninstalled traps 1534 | -9/Mines | Deemed a non-threat by the Exiles lab entrance 1534 | -9/Mines | Discovered new exit (range 5) 1538 | -9/Mines | Entered Exiles 1565 | -9/Exiles | Met 8R-AWN 1578 | -9/Exiles | Met EX-HEX 1598 | -9/Exiles | Attacked by the Exiles 1616 | -9/Exiles | Core integrity fell below 50% 1623 | -9/Exiles | Core integrity fell below 20% 1629 | -9/Exiles | Destroyed by 8R-AWN with 8R-AWN's Boregun Last Messages --------------- Penetrated by HV Slug. HV Slug penetrates Machine. Machine disabled. as-60072 destroyed. Wheel destroyed. Penetrated by HV Slug. Critical hit (Destroy). Hrd. Light Armor Plating destroyed. Penetrated by HV Slug. Shield Generator destroyed. Lgt. Ion Engine destroyed. Assembled Analyzer disabled. HV Slug penetrates Machine. Machine disabled. HV Slug penetrates Machine. Penetrated by HV Slug. Com. Wheel destroyed. Penetrated by HV Slug. Slammed into as-73138. Penetrated by HV Slug. Map ----- +----------------------------------------------------+ | ?????????????????????????????????????????????????? | | ?????????????????????????????????????????????????? | | ?????????????????????????????????????????????????? | | ?????????????????????????????????????????????????? | | ?????????????????????????????????????????????????? | | ?????????????????????????????????????????????????? | | ?????????????????????????????????????????????????? | | ?????????????????????????????????????????????????? | | ?????????????????????????????????????????????????? | | ?????????????????????????????????????????????????? | | ?????????????????????????????????????????????????? | | ?????????????????????????????????????????????????? | | ?????????????????????????????????????????????????? | | ?????????????????????????????????????????????????? | | ?????????????? ????????????????????????????????? | | ?????????????? #???????????????????????????????? | | ????????????? #????###########???????????????? | | ????????????? #####"""""""""##??????????????? | | ???????????? " """ """"##?????????????? | | ???????????? #?????????????? | | ???????????? """#?????????????? | | ??????????? "a"#???????????### | | ??????????? " "##?????????##" | | ??????????? "###???????#" | | ?????????????"" a """#??????##" | | ??????????????""" @% "#????### | | ?????????????????#""" aa ##???# | | ?????????????????##""" ##?## | | ??????????????????#"""" ### | | ??????????????????#"" ## | | ??????????????????"""" ### | | ?????????????????? ""#?# | | ????????????????? #"""##?# | | ????????????????? a ######??? | | ???????????????? % ##???????? | | ???????????????? " a = ##????????? | | ???????????????? "" """ % ""#?????????? | | ??????????????????"" " " ""#" "##?????????? | | ???????????????????##""" """## """""##??????????? | | ???????????????????????"""???#########???????????? | | ?????????????????????????????????????????????????? | | ?????????????????????????????????????????????????? | | ?????????????????????????????????????????????????? | | ?????????????????????????????????????????????????? | | ?????????????????????????????????????????????????? | | ?????????????????????????????????????????????????? | | ?????????????????????????????????????????????????? | | ?????????????????????????????????????????????????? | | ?????????????????????????????????????????????????? | | ?????????????????????????????????????????????????? | +----------------------------------------------------+ Best States ------------- Heat Dissipation 28 Energy Generation 10 Energy Capacity 325 Matter Stores 300 Matter Capacity 300 Sight Range 18 Terrain Scan Density 10 Armor Coverage 150 Evasion (%) 55 Defensive Hacking 10 Item Schematics ----------------- None Robot Schematics ------------------ None Fabricated ------------ Nothing Repaired ---------- Nothing Studied --------- None Alien Tech Used ----------------- None Achievements -------------- I Have A Map? Spot Them First Challenges ------------ None Game ------ Seed TripodLauncherScrap Manual? 0 Play Time 00:36:34 Cumulative 3.9 hours Start 2026.01.04 @ 20:38:18 End 2026.01.04 @ 21:51:13 Sessions 1 Manual Loads 0 Difficulty Rogue Special Mode None Game No. 8 Rogue 8 Adventurer 0 Explorer 0 Win Type - Total 0 Types 0/0/0/0/0/0/0/0/0/0 Lore% 0 Gallery% 7 Achievement% 6 Wizard Run 0 Options --------- Layout 1 ASCII 0 Keyboard 0 Movement Mouse Keybinds 0 Fullscreen 2 Font 24/Smallcaps Map View 50x35 Zoom Use 0% Tactical HUD 0 Map Filters NONE Filters NONE Steam 1 RUN: fe0ed528-28c0-4927-8237-943032c4ecdd